bitfinex-derivatives/quotes_ETHF0:USTF0_20260131
["timestamp","ask_amount","ask_price","bid_price","bid_amount"]
[1769832452688,1.17225458,2699.5,2698.7,2.73036677]
[1769832452891,3.85681718,2699.0,2698.7,2.73036677]
[1769832453288,1.17225458,2699.4,2698.7,2.73036677]
[1769832453594,3.95048008,2698.9,2698.7,0.18556]
[1769832453792,1.16507227,2699.2,2698.7,0.18556]
[1769832453987,3.81477384,2699.1,2698.7,0.18556]
[1769832454189,4.97984611,2699.1,2698.7,0.18556]
[1769832454593,1.16507227,2699.1,2698.7,0.18556]
[1769832454894,3.98959651,2699.0,2698.7,0.18556]
[1769832464501,1.106368,2698.9,2698.7,0.18556]
[1769832464798,3.79761263,2698.8,2698.3,2.68595946]
[1769832464994,3.40157263,2698.8,2698.3,2.68595946]
[1769832465198,4.12827211,2698.9,2698.7,0.18555]
[1769832465497,1.12704678,2698.9,2698.3,2.68595946]
[1769832465696,1.12704678,2698.9,2697.9,3.71367355]
[1769832465697,1.12704678,2698.9,2698.1,2.68595946]
[1769832465899,4.12827211,2698.8,2698.1,2.68595946]
[1769832467200,4.12827211,2698.8,2698.5,0.18557]
[1769832468201,3.86652111,2699.0,2698.5,2.87152946]
[1769832468502,1.05513831,2699.1,2698.5,2.87152946]
[1769832468803,3.86652111,2699.0,2698.5,2.87152946]
[1769832470303,3.86652111,2699.0,2698.6,0.18556]
[1769832470993,4.88672076,2699.0,2698.6,0.18556]
[1769832471300,1.02019965,2699.0,2698.6,0.18556]
[1769832471601,4.07800586,2698.9,2698.6,0.18556]
[1769832473602,4.07800586,2698.9,2697.9,3.71367355]
[1769832473603,5.07627353,2698.9,2698.3,2.68595946]
[1769832474005,0.99826767,2698.9,2698.3,2.68595946]
[1769832474304,3.96209873,2698.8,2698.3,2.68595946]
[1769832474607,3.58797873,2698.8,2698.3,2.68595946]
[1769832474900,0.99475365,2699.1,2698.3,2.68595946]
[1769832474901,0.99475365,2699.1,2698.6,0.18556]
[1769832475405,3.9210258,2699.0,2698.6,0.18556]
[1769832475701,4.93980582,2699.0,2698.6,0.18556]
[1769832476004,1.01878002,2699.0,2698.6,0.18556]
[1769832476301,4.1903191,2698.9,2698.6,0.18556]
[1769832476504,5.20174886,2698.9,2698.6,0.18556]
[1769832476802,1.01142976,2698.9,2698.6,0.18556]
[1769832477197,5.08922756,2698.8,2698.2,2.68595946]
[1769832477398,0.8222645,2698.7,2697.9,0.00467355]
[1769832477800,0.81759095,2698.5,2697.8,0.18562]
[1769832478097,1.2227066,2699.2,2697.9,2.87156946]
[1769832478098,3.96813309,2698.4,2697.9,2.87156946]
[1769832478510,3.96813309,2698.5,2697.9,2.87156946]
[1769832478698,3.96813309,2698.5,2697.9,2.87440605]
[1769832479005,4.78477635,2698.6,2698.0,0.1856]
[1769832479309,4.12827129,2698.4,2698.0,0.1856]
[1769832479610,4.12827129,2698.5,2698.0,0.1856]
[1769832479804,4.93751035,2698.5,2698.0,0.1856]
[1769832480003,0.80923906,2698.5,2698.0,0.1856]
[1769832480199,0.77201504,2698.7,2698.1,0.1856]
[1769832480513,4.06335923,2698.6,2698.4,0.18557]
[1769832480701,2.21723031,2699.7,2698.6,2.68595946]
[1769832480702,0.77201504,2699.7,2698.6,2.68595946]
[1769832480902,3.69592055,2699.1,2698.8,2.87150946]
[1769832481101,0.77201504,2699.5,2698.8,2.87150946]
[1769832481508,3.69837032,2699.1,2698.8,2.87150946]
[1769832481706,2.91839482,2699.4,2698.8,2.87150946]
[1769832481906,0.77201504,2699.5,2698.8,2.87150946]
[1769832482108,4.24724698,2699.4,2698.9,2.87149946]
[1769832482520,3.86109698,2699.4,2699.0,2.68595946]
[1769832482705,0.00423344,2700.0,2699.3,2.87146946]
[1769832482905,0.00423344,2700.0,2699.4,0.18551]
[1769832483105,4.24724698,2699.8,2699.4,0.18551]
[1769832483411,0.81887915,2700.0,2699.5,2.87145946]
[1769832483412,0.00423344,2700.0,2699.5,2.87145946]
[1769832483815,3.88343166,2699.9,2699.5,2.87145946]
[1769832484112,0.00423344,2700.0,2699.0,2.175]
[1769832484113,0.00423344,2700.0,2699.6,2.87144946]
[1769832484406,3.44e-06,2700.0,2699.8,2.68595946]
[1769832485111,3.44e-06,2700.0,2699.8,2.87143946]
[1769832485499,3.44e-06,2700.0,2699.8,2.87469125]
[1769832485904,3.44e-06,2700.0,2699.9,2.87142946]
[1769832486109,0.88349364,2700.8,2700.0,2.87142946]
[1769832486508,4.19949175,2700.5,2700.0,2.87142946]
[1769832486709,0.87930057,2700.5,2700.0,0.18547]
[1769832487105,4.19949175,2700.4,2700.0,0.18547]
[1769832487300,0.8699192,2700.3,2699.6,2.64102665]
[1769832487712,4.87604583,2700.2,2699.3,2.64102665]
[1769832487921,0.6844492,2700.1,2699.3,0.18551]
[1769832488210,0.68859704,2699.9,2699.3,0.18551]
[1769832488417,0.68859704,2699.9,2699.3,0.18860573]
[1769832488716,1.2332948,2699.8,2699.3,0.18860573]
[1769832489016,0.68859704,2699.8,2699.3,0.18860573]
[1769832489216,0.68859704,2699.8,2698.6,2.64102665]
[1769832489520,5.10368755,2700.4,2698.6,2.64102665]
[1769832489521,0.5390015,2699.6,2698.7,2.64102665]
[1769832489813,4.758695,2699.5,2698.7,2.64102665]
[1769832490213,0.5390015,2699.5,2698.7,2.64102665]
[1769832490515,1.2227066,2700.4,2698.7,2.64102665]
[1769832490516,0.52853163,2699.3,2698.7,0.00260116]
[1769832490814,4.17933613,2699.2,2698.7,0.00260116]
[1769832491017,0.52853163,2699.1,2698.6,0.18556]
[1769832491414,0.05883303,2699.0,2698.6,0.18556]
[1769832491613,0.51932856,2699.3,2698.6,2.82658665]
[1769832491820,4.05058639,2699.1,2698.6,2.82658665]
[1769832492011,4.05058639,2698.9,2698.6,2.8274926]
[1769832492318,4.10292773,2699.1,2698.6,2.8274926]
[1769832492818,0.55230245,2699.8,2698.6,2.8274926]
[1769832493004,4.10292773,2699.0,2698.6,2.8274926]
[1769832493410,0.55230245,2699.5,2698.6,2.8274926]
[1769832493712,3.93109315,2699.0,2698.6,2.8274926]
[1769832493919,3.80121439,2699.0,2698.6,2.8274926]
[1769832494117,0.8137875,2699.3,2698.6,2.8274926]
[1769832494412,4.20004471,2698.9,2698.6,0.18646595]
[1769832494617,4.20004471,2699.0,2698.6,0.18646595]
[1769832494815,0.57636817,2699.2,2698.6,0.18646595]
[1769832495018,4.77641288,2699.1,2698.6,0.18646595]
[1769832495221,4.15347461,2698.9,2698.6,0.18646595]
[1769832495422,0.57636817,2699.1,2698.6,0.18646595]
[1769832495623,4.15347461,2699.0,2698.6,0.18646595]
[1769832498027,0.55676751,2698.9,2697.9,0.18561]
[1769832498325,4.09277538,2698.8,2697.9,0.18561]
[1769832498528,0.3664466,2698.7,2697.9,0.18561]
[1769832498719,0.3664466,2698.7,2698.0,0.1856]
[1769832499025,4.02888509,2698.6,2698.0,0.1856]
[1769832499326,4.03328186,2698.6,2698.0,0.1856]
[1769832499616,4.3940025,2698.6,2698.0,0.1856]
[1769832502025,4.3940025,2698.6,2698.1,0.1856]
[1769832502324,4.03328186,2698.6,2698.1,2.82662665]
[1769832514934,4.29069808,2698.6,2698.1,0.1856]
[1769832515141,0.07181622,2698.4,2697.5,2.82666665]
[1769832515332,0.07181622,2698.4,2697.6,0.18563]
[1769832515531,3.93729878,2698.3,2697.6,0.18563]
[1769832515838,0.07037271,2698.3,2697.6,0.18563]
[1769832516337,3.86692607,2698.2,2697.6,0.18563]
[1769832521649,3.86692607,2698.2,2697.7,2.67165064]
[1769832521835,0.00439677,2698.6,2698.2,2.67165064]
[1769832522036,0.05193683,2698.6,2698.1,0.1856]
[1769832522336,4.34573135,2698.4,2697.6,2.67108649]
[1769832522532,0.12107572,2698.4,2697.6,2.67108649]
[1769832522939,4.22465563,2698.3,2697.6,2.67108649]
[1769832523545,4.22465563,2698.3,2698.1,0.1856]
[1769832523742,4.22465563,2698.3,2697.7,2.67105475]
[1769832525140,4.22465563,2698.3,2698.1,0.1856]
[1769832525340,4.22465563,2698.3,2697.7,2.67105475]
[1769832526045,4.31529222,2698.5,2698.1,0.1856]
[1769832526340,0.11132078,2698.5,2697.7,2.67105475]
[1769832526642,3.97673313,2698.4,2698.1,0.1856]
[1769832526841,3.97673313,2698.4,2697.7,2.67105475]
[1769832528345,3.97673313,2698.4,2698.1,0.1856]
[1769832528542,3.97673313,2698.4,2697.8,2.66997456]
[1769832530135,3.97673313,2698.4,2698.1,0.1856]
[1769832530341,3.97673313,2698.4,2697.8,2.66997456]
[1769832533151,3.97673313,2698.4,2698.1,0.1856]
[1769832534551,3.97673313,2698.4,2697.8,2.66997456]
[1769832535150,3.97673313,2698.4,2698.1,0.1856]
[1769832537452,3.97673313,2698.4,2697.8,2.66997456]
[1769832538150,3.98401214,2698.5,2698.1,0.1856]
[1769832538559,0.11433314,2698.5,2698.1,0.1856]
[1769832538856,4.02669544,2698.4,2698.1,0.1856]
[1769832539350,3.41679544,2698.4,2698.3,2.56833356]
[1769832539557,0.19981644,2699.3,2698.1,1.22261479]
[1769832539762,3.41679544,2699.2,2698.1,1.22261479]
[1769832540051,3.8044075,2698.8,2698.1,1.22261479]
[1769832540257,3.41679544,2699.1,2698.1,1.22261479]
[1769832540452,3.92353193,2698.7,2698.1,1.22594212]
[1769832540662,1.7767887,2698.7,2698.5,0.18557]
[1769832540953,0.0033423,2699.1,2698.5,0.18557]
[1769832541157,3.41679544,2699.0,2698.5,0.18557]
[1769832541349,4.27558956,2698.8,2698.5,0.18557]
[1769832541549,3.41679544,2698.9,2698.5,2.85218849]
[1769832541953,4.27558956,2698.8,2698.5,2.85218849]
[1769832542654,4.26607863,2699.0,2698.6,0.18556]
[1769832542858,7.68287407,2699.0,2698.6,2.90735295]
[1769832543059,3.41679544,2699.0,2698.6,2.90735295]
[1769832543260,7.68287407,2698.9,2698.6,2.90735295]
[1769832543461,4.26607863,2698.9,2698.6,2.90735295]
[1769832543664,3.41679544,2698.9,2698.6,2.90735295]
[1769832543960,4.28854028,2698.8,2698.6,0.18556]
[1769832544656,0.1001543,2698.7,2698.1,0.00332733]
[1769832544858,0.1001543,2698.6,2698.2,0.18559]
[1769832545163,3.68999486,2698.5,2698.3,0.18558]
[1769832545355,3.12256486,2698.5,2698.3,0.18558]
[1769832545555,3.12256486,2698.5,2698.3,0.1682237]
[1769832554968,2.74903486,2698.5,2698.3,2.73692745]
[1769832555175,0.05170132,2699.1,2698.6,0.18556]
[1769832555371,3.41679544,2699.0,2698.6,0.18556]
[1769832555564,7.70184395,2699.0,2698.4,2.73692745]
[1769832556274,7.70184395,2699.0,2698.2,2.74654745]
[1769832556275,0.06710094,2698.9,2698.2,2.74654745]
[1769832556571,4.17379551,2698.8,2698.2,2.74654745]
[1769832558172,4.17379551,2698.8,2698.6,0.18556]
[1769832558373,4.17379551,2698.8,2698.2,2.74654745]
[1769832558576,7.59059095,2698.8,2698.2,2.74654745]
[1769832559174,7.59059095,2698.8,2698.6,0.18556]
[1769832560072,7.59059095,2698.8,2698.2,2.74654745]
[1769832562574,4.17379551,2698.8,2698.2,2.74654745]
[1769832563179,4.17379551,2698.8,2698.6,0.09448]
[1769832563477,4.17379551,2698.8,2698.2,2.74654745]
[1769832563676,7.59059095,2698.8,2698.2,2.74654745]
[1769832564179,7.59059095,2698.8,2698.6,0.18556]
[1769832564375,7.59059095,2698.8,2698.2,2.74654745]
[1769832565178,7.59059095,2698.8,2698.6,0.18556]
[1769832565376,7.59059095,2698.8,2698.2,2.74654745]
[1769832566268,0.03175142,2698.7,2698.6,0.18556]
[1769832566469,0.03175142,2698.7,2698.1,0.00332733]
[1769832566771,3.89677712,2698.7,2698.1,2.75626573]
[1769832567179,3.89677712,2698.7,2698.6,0.18556]
[1769832567478,3.03921544,2698.6,2698.0,2.76784942]
[1769832567677,1.64921544,2698.6,2698.0,2.76784942]
[1769832567977,4.07080005,2698.5,2698.2,0.18559]
[1769832568178,4.07080005,2698.5,2698.0,2.76784942]
[1769832568376,4.07080005,2698.5,2698.0,2.76891886]
[1769832568677,4.07080005,2698.5,2698.2,0.18559]
[1769832568878,4.07080005,2698.5,2698.0,2.76891886]
[1769832569175,5.72001549,2698.5,2698.0,2.76891886]
[1769832569677,1.64921544,2698.5,2698.0,2.76891886]
[1769832569878,3.81158407,2698.4,2698.2,0.18559]
[1769832570178,2.52058407,2698.4,2698.2,0.0743325]
[1769832570378,1.66004407,2698.4,2698.2,0.0743325]
[1769832570577,0.79902407,2698.4,2698.2,0.0743325]
[1769832570771,4.07e-06,2698.4,2698.2,0.0743325]
[1769832571676,1.64921544,2698.4,2698.3,0.18558]
[1769832571979,0.06741597,2699.0,2698.4,0.18558]
[1769832572179,0.80088951,2699.0,2698.7,2.96720394]
[1769832572380,3.76239542,2698.8,2698.7,2.96720394]
[1769832572578,1.45231786,2698.8,2698.7,2.96720394]
[1769832572780,0.45494786,2698.8,2698.7,2.96720394]
[1769832573078,0.0033423,2699.1,2698.8,0.18555]
[1769832573377,3.51508184,2699.0,2698.8,0.18555]
[1769832573577,3.10801184,2699.0,2698.8,0.18555]
[1769832573781,2.29548184,2699.0,2698.8,0.18555]
[1769832573980,1.49967184,2699.0,2698.8,0.18555]
[1769832574180,0.72150184,2699.0,2698.8,0.18555]
[1769832574381,1.84e-06,2699.0,2698.8,0.18555]
[1769832575577,1.84e-06,2699.0,2698.9,0.18554]
[1769832575981,9.66e-06,2699.4,2699.0,0.18553]
[1769832576181,3.00661648,2699.9,2699.1,0.18553]
[1769832576381,3.21300769,2699.3,2698.8,2.83550048]
[1769832576582,0.14007901,2699.6,2698.8,2.83550048]
[1769832576874,2.69313281,2699.2,2698.8,2.83550048]
[1769832577184,1.36e-06,2699.2,2699.1,0.18553]
[1769832577683,3.56341754,2699.2,2699.1,0.18553]
[1769832577883,2.57034754,2699.2,2699.1,0.18553]
[1769832578082,1.57406754,2699.2,2699.1,0.18553]
[1769832578285,0.58384754,2699.2,2699.1,0.18553]
[1769832578485,7.54e-06,2699.2,2699.1,0.18553]
[1769832578784,5.44e-06,2699.2,2699.1,0.18553]
[1769832578985,1.26697039,2699.2,2699.1,0.18553]
[1769832579186,0.32478039,2699.2,2699.1,0.18553]
[1769832579485,3.9e-07,2699.2,2699.1,0.18553]
[1769832579985,0.00326842,2699.2,2699.1,0.18553]
[1769832583884,0.00326842,2699.2,2699.1,3.02061882]
[1769832584082,0.2752987,2699.8,2699.2,3.01897461]
[1769832584482,3.0623355,2699.7,2699.2,3.01897461]
[1769832584887,0.27222418,2699.7,2699.2,3.01897461]
[1769832585089,2.79011132,2699.6,2699.2,3.01897461]
[1769832586792,2.79011132,2699.6,2699.2,0.18552]
[1769832586986,3.0351633,2699.6,2699.2,0.18552]
[1769832588386,2.79011132,2699.6,2699.2,0.18552]
[1769832588586,2.79011132,2699.6,2699.0,2.84080039]
[1769832588786,3.02223315,2699.6,2699.0,2.84080039]
[1769832589088,0.23212183,2699.5,2698.5,2.84097379]
[1769832589493,4.08855969,2699.4,2698.5,2.84097379]
[1769832589992,0.22957739,2699.4,2698.5,2.84097379]
[1769832590186,3.8589823,2699.3,2699.0,0.18553]
[1769832591694,3.4760123,2699.3,2699.0,3.0831147]
[1769832591895,4.12653288,2699.5,2699.0,3.0831147]
[1769832592095,0.10369386,2699.6,2699.0,3.0831147]
[1769832592495,4.12653288,2699.5,2699.0,3.0831147]
[1769832593190,4.30043277,2699.5,2699.0,3.0831147]
[1769832593390,4.30043277,2699.5,2699.0,0.18553]
[1769832593596,0.17389989,2699.5,2699.0,0.18553]
[1769832593797,4.27377013,2699.4,2699.0,0.18553]
[1769832595900,4.27377013,2699.4,2699.0,3.04740343]
[1769832596198,4.26359543,2699.6,2699.2,2.86187343]
[1769832596592,2.69060583,2699.3,2699.2,2.86187343]
[1769832596801,3.85296583,2699.6,2699.1,3.04727104]
[1769832597098,3.33914583,2699.3,2699.1,3.04727104]
[1769832597298,2.82587583,2699.3,2699.1,3.04727104]
[1769832597487,3.89638719,2699.6,2699.1,3.04727104]
[1769832597692,3.28933719,2699.2,2699.1,3.04727104]
[1769832597994,3.89638719,2699.6,2699.2,0.18552]
[1769832598195,0.15574633,2699.7,2699.2,0.18552]
[1769832598499,3.89026002,2699.6,2699.2,0.18552]
[1769832602000,3.89026002,2699.6,2699.2,3.04756768]
[1769832604197,3.51760002,2699.6,2699.3,2.86204675]
[1769832604395,2.78028831,2700.5,2699.6,2.66916191]
[1769832604596,2.78028831,2700.5,2699.9,0.18547]
[1769832604903,3.98400789,2700.2,2699.9,0.18547]
[1769832605203,2.78028831,2700.3,2699.9,0.18547]
[1769832605502,2.52940789,2700.1,2699.9,2.8592682]
[1769832605702,3.4011169,2700.2,2699.9,2.8592682]
[1769832605898,0.29463994,2700.0,2699.9,2.8592682]
[1769832606107,3.2847069,2700.1,2700.0,0.18547]
[1769832606399,2.63245823,2700.2,2700.0,0.18547]
[1769832606599,1.99e-06,2700.3,2700.0,0.18547]
[1769832606600,1.64088641,2700.1,2700.0,0.18547]
[1769832606806,1.12009641,2700.1,2700.0,0.18547]
[1769832606999,1.73606823,2700.2,2700.0,0.18547]
[1769832607199,0.09877641,2700.1,2700.0,0.18547]
[1769832607396,6.41e-06,2700.1,2700.0,0.18547]
[1769832607591,1.00492483,2700.2,2700.0,0.18547]
[1769832607897,4.83e-06,2700.2,2700.0,0.18547]
[1769832613508,4.83e-06,2700.2,2700.0,3.02849011]
[1769832613710,4.83e-06,2700.2,2700.1,3.02848011]
[1769832626810,2.86683127,2700.2,2699.9,0.00463629]
[1769832627007,2.86683127,2700.2,2699.1,2.174]
[1769832627207,2.86683127,2700.2,2699.8,0.18548]
[1769832627913,2.86683127,2700.2,2699.8,0.18982879]
[1769832657342,2.86683127,2700.2,2699.0,12.58786725]
[1769832657343,2.96082519,2700.1,2699.0,12.58786725]
[1769832657547,2.96082519,2700.1,2699.5,2.95714911]
[1769832657748,1.96827886,2700.0,2699.6,2.95714911]
[1769832658049,4.14353886,2700.1,2699.6,2.95714911]
[1769832658238,4.14353886,2700.1,2699.6,2.96120508]
[1769832658438,3.63146886,2699.9,2699.6,2.96120508]
[1769832658748,3.89595989,2700.0,2699.6,2.96120508]
[1769832659148,2.96082718,2700.3,2699.8,0.18548]
[1769832659542,2.99704989,2699.9,2699.8,0.18548]
[1769832659743,3.66496104,2700.2,2699.8,0.18548]
[1769832659944,2.96082519,2700.2,2699.8,0.18548]
[1769832660144,3.56871916,2699.9,2699.8,0.18548]
[1769832660443,5.87517755,2700.1,2699.8,0.18548]
[1769832660645,2.96082519,2700.1,2699.8,0.18548]
[1769832660848,3.46926576,2699.9,2699.8,0.18548]
[1769832661150,2.96082519,2700.1,2699.8,0.18548]
[1769832661648,3.91103576,2700.0,2699.8,0.18548]
[1769832668254,3.53866576,2700.0,2699.8,0.18548]
[1769832670957,3.16453576,2700.0,2699.8,0.18548]
[1769832671160,2.79039576,2700.0,2699.8,0.18548]
[1769832671354,2.03913576,2700.0,2699.8,0.18548]
[1769832671656,0.91598576,2700.0,2699.8,0.18548]
[1769832671850,0.16868576,2700.0,2699.8,0.18548]
[1769832672045,5.76e-06,2700.0,2699.8,0.18548]
[1769832673360,1.99e-06,2700.3,2699.8,0.18548]
[1769832673762,3.15736767,2699.9,2699.8,0.18548]
[1769832673961,0.16757029,2700.0,2699.8,0.18548]
[1769832674162,1.99e-06,2700.3,2699.8,0.18548]
[1769832674354,2.64854767,2700.2,2699.8,0.18548]
[1769832674662,1.99e-06,2700.3,2699.8,0.18548]
[1769832674864,2.22761856,2700.2,2699.8,0.18548]
[1769832675362,3.23361061,2700.1,2699.8,0.18548]
[1769832675664,4e-08,2700.0,2699.8,0.18548]
[1769832677757,3.23361061,2699.9,2699.3,0.18552]
[1769832678163,3.23361061,2699.7,2699.3,0.18552]
[1769832678359,3.23361061,2699.7,2698.9,7.30933342]
[1769832678564,3.23361061,2699.5,2699.3,0.18551]
[1769832678863,8.59e-06,2699.4,2698.9,7.30933342]
[1769832679267,8.59e-06,2699.4,2699.0,3.12433342]
[1769832679567,8.59e-06,2699.4,2699.3,0.18551]
[1769832679870,8.59e-06,2699.4,2699.3,0.1883146]
[1769832680058,2.4708992,2699.5,2699.3,0.1883146]
[1769832680259,1.7077192,2699.5,2699.0,3.12433342]
[1769832680459,2.97800743,2699.4,2699.0,3.12433342]
[1769832680659,1.97022743,2699.4,2699.0,3.12433342]
[1769832680864,3.99181531,2700.1,2699.0,3.12433342]
[1769832681167,1.22146155,2700.2,2699.3,0.18551]
[1769832681561,3.99181531,2700.1,2699.3,0.18551]
[1769832682370,3.23361061,2700.0,2699.3,0.18551]
[1769832682670,3.23361061,2699.8,2699.3,0.18551]
[1769832682970,2.41317057,2699.7,2699.3,0.18551]
[1769832683270,5.64678118,2699.7,2699.3,0.18551]
[1769832683671,3.23361061,2699.7,2699.3,0.18551]
[1769832683971,2.63209697,2699.6,2699.3,0.18551]
[1769832685873,5.86570758,2699.6,2699.3,0.18551]
[1769832686174,3.23361061,2699.6,2699.3,0.18551]
[1769832686475,3.67578204,2699.5,2699.3,0.18551]
[1769832686676,3.26578204,2699.5,2699.3,0.18551]
[1769832686876,2.44883204,2699.5,2699.1,3.12433342]
[1769832687076,1.63225204,2699.5,2699.1,3.12433342]
[1769832687376,0.40350204,2699.5,2699.3,0.18551]
[1769832687575,2.04e-06,2699.5,2699.3,0.18551]
[1769832692376,3.23361265,2699.5,2699.3,0.18551]
[1769832692577,3.23361265,2699.5,2699.0,0.0031476]
[1769832694180,3.23361265,2699.5,2699.3,0.18551]
[1769832694477,3.23361265,2699.5,2699.0,3.12748102]
[1769832695178,3.23361265,2699.5,2699.3,0.18551]
[1769832695379,3.23361265,2699.5,2699.0,3.12748102]
[1769832696179,3.23361265,2699.5,2699.3,0.18551]
[1769832696380,3.23361265,2699.5,2699.3,0.1724556]
[1769832696682,2.04e-06,2699.5,2699.3,0.1724556]
[1769832696875,3.40445962,2700.6,2699.3,0.1724556]
[1769832697182,3.40445962,2700.1,2699.3,0.1724556]
[1769832697482,4.11127262,2700.0,2699.3,0.1724556]
[1769832697677,3.40445962,2699.9,2699.3,0.1724556]
[1769832698077,3.40445962,2699.7,2699.3,0.1724556]
[1769832698474,3.90378302,2699.6,2699.3,0.1724556]
[1769832698675,3.90378302,2699.6,2699.3,3.75030926]
[1769832700782,7.2205073,2699.6,2699.3,0.1724556]
[1769832701081,3.31672428,2699.5,2699.3,0.1724556]
[1769832701580,7.36159843,2699.5,2699.3,0.1724556]
[1769832701775,3.31672428,2699.5,2699.3,0.1724556]
[1769832702082,4.22696893,2699.4,2699.3,0.1724556]
[1769832702986,7.54369321,2699.4,2699.0,0.0031476]
[1769832703282,4.22696893,2699.4,2699.3,0.18551]
[1769832703983,3.31672428,2699.3,2699.0,0.0031476]
[1769832704384,2.9283776,2699.2,2699.0,0.0031476]
[1769832704583,2.5352076,2699.2,2699.0,0.1886876]
[1769832704783,1.6081076,2699.2,2699.0,0.1886876]
[1769832704983,0.6609076,2699.2,2699.0,3.76654126]
[1769832705181,7.6e-06,2699.2,2699.0,3.76654126]
[1769832706688,3.31672428,2699.5,2699.0,3.76654126]
[1769832706881,3.31672428,2699.7,2699.0,3.76654126]
[1769832707079,4.23846271,2699.4,2699.0,3.76654126]
[1769832707484,3.31672428,2699.7,2699.0,3.76654126]
[1769832707886,4.03374244,2699.6,2699.0,3.76654126]
[1769832708789,3.31672428,2700.0,2699.0,3.76654126]
[1769832708990,7.25470458,2699.9,2699.0,3.76654126]
[1769832709194,3.31672428,2699.8,2699.0,3.76654126]
[1769832709495,3.9379803,2699.7,2699.0,3.76654126]
[1769832711495,7.25470458,2699.7,2699.0,3.76654126]
[1769832711798,3.31672428,2699.7,2699.0,3.76654126]
[1769832712097,4.0804603,2699.6,2699.0,3.76654126]
[1769832718403,7.39718458,2699.6,2699.1,3.76338366]
[1769832718705,3.31672428,2699.6,2699.1,3.76338366]
[1769832719002,4.02004564,2699.5,2699.1,3.76338366]
[1769832719402,7.33676992,2699.5,2699.1,3.76338366]
[1769832719604,4.02004564,2699.5,2699.1,3.76338366]
[1769832723405,7.33676992,2699.5,2699.1,3.76338366]
[1769832723602,7.33676992,2699.5,2699.1,0.18553]
[1769832729409,3.62170373,2699.4,2699.1,0.18553]
[1769832729610,3.62170373,2699.4,2698.6,0.18556]
[1769832729815,3.62170373,2699.2,2698.6,0.18556]
[1769832730107,3.62170373,2699.2,2698.0,3.708]
[1769832730108,3.62170373,2699.2,2698.1,3.45972281]
[1769832730313,3.62170373,2699.0,2698.1,0.1856]
[1769832730808,3.62170373,2698.8,2698.1,0.1856]
[1769832731215,3.62170373,2698.6,2697.9,7.34712281]
[1769832731407,3.62170373,2698.6,2697.7,3.27412281]
[1769832731612,3.62170373,2698.4,2697.8,4.265]
[1769832731814,3.62521124,2698.4,2697.8,4.265]
[1769832732008,3.65464521,2698.3,2697.8,4.265]
[1769832732711,3.65464521,2698.3,2697.8,7.53912281]
[1769832733212,3.65464521,2698.3,2698.1,0.1856]
[1769832743316,3.62170373,2698.7,2698.2,0.18559]
[1769832743522,6.49,2699.9,2698.6,3.27412281]
[1769832743713,4.11104592,2699.5,2698.6,3.27412281]
[1769832743909,4.03810171,2699.8,2698.6,3.27412281]
[1769832744314,0.00401422,2699.8,2698.6,3.27763032]
[1769832744513,0.00401422,2699.8,2698.6,3.46319032]
[1769832744719,4.03810171,2699.7,2698.6,3.46319032]
[1769832744923,4.03810171,2699.7,2698.7,0.18556]
[1769832745427,2.72143073,2699.6,2698.7,0.18556]
[1769832745720,4.13257773,2699.5,2698.7,0.18556]
[1769832745924,2.72143073,2699.4,2698.7,0.18556]
[1769832746225,6.39091618,2699.3,2698.7,0.18556]
[1769832746526,2.24148419,2699.3,2698.7,0.18556]
[1769832746913,6.39091618,2699.2,2698.7,3.45968281]
[1769832747326,2.24148419,2699.2,2698.7,3.45968281]
[1769832747522,4.11001802,2699.1,2698.7,3.45968281]
[1769832750621,2.21427565,2699.5,2698.9,0.18554]
[1769832750830,3.41955122,2699.0,2698.9,0.18554]
[1769832751126,2.21427565,2699.3,2698.9,0.18554]
[1769832751326,6.85e-06,2699.0,2698.9,0.18554]
[1769832751528,3.96142122,2699.2,2698.9,0.18554]
[1769832754122,6.33118553,2699.2,2698.9,0.18554]
[1769832754327,2.36976431,2699.2,2698.9,0.18554]
[1769832754526,4.00867292,2699.1,2698.9,0.18554]
[1769832760225,8.70017164,2700.4,2698.6,0.00350751]
[1769832760226,5.724978,2700.8,2699.5,2.21072921]
[1769832760427,3.51480636,2700.7,2700.1,1.22205029]
[1769832760630,3.49168917,2700.5,2700.1,1.40751029]
[1769832760831,3.51480636,2700.7,2700.1,1.40751029]
[1769832761032,3.51480636,2700.7,2700.1,0.18546]
[1769832761234,7.42000908,2700.6,2700.1,0.18546]
[1769832762032,3.51480636,2700.5,2700.1,0.18546]
[1769832762432,3.72232074,2700.4,2700.1,0.18546]
[1769832762638,2.86278074,2700.4,2700.1,0.18546]
[1769832762829,1.99696074,2700.4,2700.1,0.18546]
[1769832763029,1.15090074,2700.4,2700.1,0.18546]
[1769832763230,3.51960981,2700.7,2700.1,0.18546]
[1769832763426,3.56016244,2700.3,2700.1,0.18546]
[1769832763731,7.80896806,2700.6,2700.1,0.18546]
[1769832763931,3.51480636,2700.6,2700.1,0.18546]
[1769832764234,4.17396535,2700.5,2700.1,0.18546]
[1769832768633,7.68877171,2700.5,2700.1,0.18546]
[1769832769034,3.51480636,2701.1,2700.3,0.18544]
[1769832769430,4.27484001,2700.6,2700.3,0.18544]
[1769832769630,3.51480636,2700.8,2700.3,0.18544]
[1769832769935,4.28319263,2700.7,2700.3,0.18544]
[1769832770132,4.28751288,2700.7,2700.3,0.18544]
[1769832771139,7.80231924,2700.7,2700.3,0.18544]
[1769832771531,3.51480636,2700.6,2700.3,0.18544]
[1769832772441,0.00432025,2700.7,2700.3,0.18544]
[1769832772633,1.22205029,2701.7,2700.3,0.18544]
[1769832772833,3.32325075,2700.6,2700.3,3.82307479]
[1769832773035,4.22988619,2701.6,2700.3,3.82307479]
[1769832773436,1.22205029,2701.7,2700.3,3.82307479]
[1769832773635,4.22988619,2701.6,2700.3,3.82307479]
[1769832773837,4.22988619,2701.6,2700.3,0.18544]
[1769832774140,1.22205029,2701.1,2700.3,0.18544]
[1769832774341,1.22205029,2701.1,2699.9,3.63763479]
[1769832774543,0.10495334,2700.9,2699.9,3.63763479]
[1769832775141,0.10495334,2700.7,2699.9,3.63763479]
[1769832775645,3.8667062,2700.6,2699.9,3.63763479]
[1769832776137,3.8667062,2700.6,2700.3,0.18544]
[1769832776641,4.00696133,2700.6,2700.3,0.18544]
[1769832776940,0.14025513,2700.6,2699.9,3.63763479]
[1769832777244,4.15434013,2700.5,2699.9,3.63763479]
[1769832778144,4.15434013,2700.5,2700.3,0.18544]
[1769832778443,4.15434013,2700.5,2699.9,3.63763479]
[1769832779142,4.15434013,2700.5,2700.3,0.18544]
[1769832779343,4.15434013,2700.5,2700.0,3.8234804]
[1769832779842,4.15434013,2700.5,2700.3,0.18544]
[1769832780047,1.22205029,2701.6,2700.3,0.18544]
[1769832780239,1.22205029,2701.6,2700.3,4.07953743]
[1769832780438,4.21394786,2701.3,2700.3,4.07953743]
[1769832780744,4.21394786,2701.5,2700.3,4.07953743]